{"text_format":"3","workbook":"xlsx","n_sheets":1,"sheets":["Yleishyödyllinen budjetti"],"not_rendered":{"charts":2,"images":1,"defined_names":2},"read":"whole","date_system":"1900"}

{"sheet":"Yleishyödyllinen budjetti","index":0,"n_rows":40,"n_cols":18,"rows_kept":40,"merged":[[16,1,16,6],[21,1,21,5]]}
[null,"Yleishyödyllinen budjetti",{"$nulls":3},"TILIKAUSI",2012]
{"$rows_empty":7}
[null,null,{"$f":"CONCATENATE(\"FY \",FY-1)","v":"FY 2011"},{"$f":"CONCATENATE(\"FY \",FY)","v":"FY 2012"},{"$f":"CONCATENATE(\"FY \",FY)","v":"FY 2012"},{"$f":"CONCATENATE(\"FY \",FY)","v":"FY 2012"},{"$f":"CONCATENATE(\"FY \",FY)","v":"FY 2012"}]
[null,"TILIKAUSI","EDELLINEN VUOSI","EHDOTETTU","TODELLINEN","VARIANSSI","'+/- EDELLINEN VUOSI"]
[null,"Varojenkeräys ja tapahtumat",{"v":150000,"d":"150000.00"},{"v":200000,"d":"200000.00"},{"v":180000,"d":"180000.00"},{"$f":"RevenueTable[[#This Row],[TODELLINEN]]-RevenueTable[[#This Row],[EHDOTETTU]]","v":{"v":-20000,"d":"(20000.00)"}},{"$f":"RevenueTable[[#This Row],[TODELLINEN]]-RevenueTable[[#This Row],[EDELLINEN VUOSI]]","v":{"v":30000,"d":"30000.00"}}]
[null,"Säätiö",{"v":50000,"d":"50000.00"},{"v":50000,"d":"50000.00"},{"v":50000,"d":"50000.00"},{"$f":"RevenueTable[[#This Row],[TODELLINEN]]-RevenueTable[[#This Row],[EHDOTETTU]]","v":{"v":0,"d":"0.00"}},{"$f":"RevenueTable[[#This Row],[TODELLINEN]]-RevenueTable[[#This Row],[EDELLINEN VUOSI]]","v":{"v":0,"d":"0.00"}}]
[null,"Lahjoitukset",{"v":30000,"d":"30000.00"},{"v":40000,"d":"40000.00"},{"v":20000,"d":"20000.00"},{"$f":"RevenueTable[[#This Row],[TODELLINEN]]-RevenueTable[[#This Row],[EHDOTETTU]]","v":{"v":-20000,"d":"(20000.00)"}},{"$f":"RevenueTable[[#This Row],[TODELLINEN]]-RevenueTable[[#This Row],[EDELLINEN VUOSI]]","v":{"v":-10000,"d":"(10000.00)"}}]
[null,"Korkotuotto",{"$nulls":3},{"$f":"RevenueTable[[#This Row],[TODELLINEN]]-RevenueTable[[#This Row],[EHDOTETTU]]","v":{"v":0,"d":"0.00"}},{"$f":"RevenueTable[[#This Row],[TODELLINEN]]-RevenueTable[[#This Row],[EDELLINEN VUOSI]]","v":{"v":0,"d":"0.00"}}]
[null,"Muut",{"$nulls":3},{"$f":"RevenueTable[[#This Row],[TODELLINEN]]-RevenueTable[[#This Row],[EHDOTETTU]]","v":{"v":0,"d":"0.00"}},{"$f":"RevenueTable[[#This Row],[TODELLINEN]]-RevenueTable[[#This Row],[EDELLINEN VUOSI]]","v":{"v":0,"d":"0.00"}}]
[null,"YHTEENSÄ",{"$f":"SUBTOTAL(109,RevenueTable[EDELLINEN VUOSI])","v":{"v":230000,"d":"230,000.00 €"}},{"$f":"SUBTOTAL(109,RevenueTable[EHDOTETTU])","v":{"v":290000,"d":"290,000.00 €"}},{"$f":"SUBTOTAL(109,RevenueTable[TODELLINEN])","v":{"v":250000,"d":"250,000.00 €"}},{"$f":"SUBTOTAL(109,RevenueTable[VARIANSSI])","v":{"v":-40000,"d":"-40,000.00 €"}},{"$f":"SUBTOTAL(105,RevenueTable[''+/- EDELLINEN VUOSI])","v":{"v":-10000,"d":"-10,000.00 €"}}]
{"$rows_empty":8}
[null,null,{"$f":"CONCATENATE(\"FY \",FY-1)","v":"FY 2011"},{"$f":"CONCATENATE(\"FY \",FY)","v":"FY 2012"},{"$f":"CONCATENATE(\"FY \",FY)","v":"FY 2012"},{"$f":"CONCATENATE(\"FY \",FY)","v":"FY 2012"},{"$f":"CONCATENATE(\"FY \",FY)","v":"FY 2012"}]
[null,"KULUT","EDELLINEN VUOSI","EHDOTETTU","TODELLINEN","VARIANSSI","'+/- EDELLINEN VUOSI"]
[null,"Palkat",{"v":15000,"d":"15,000.00"},{"v":30000,"d":"30,000.00"},{"v":30000,"d":"30,000.00"},{"$f":"ExpenseTable[[#This Row],[TODELLINEN]]-ExpenseTable[[#This Row],[EHDOTETTU]]","v":{"v":0,"d":"0.00"}},{"$f":"ExpenseTable[[#This Row],[TODELLINEN]]-ExpenseTable[[#This Row],[EDELLINEN VUOSI]]","v":{"v":15000,"d":"15,000.00"}},{"$nulls":10},"c"]
[null,"Edut",{"v":5000,"d":"5,000.00"},{"v":7500,"d":"7,500.00"},{"v":7800,"d":"7,800.00"},{"$f":"ExpenseTable[[#This Row],[TODELLINEN]]-ExpenseTable[[#This Row],[EHDOTETTU]]","v":{"v":300,"d":"300.00"}},{"$f":"ExpenseTable[[#This Row],[TODELLINEN]]-ExpenseTable[[#This Row],[EDELLINEN VUOSI]]","v":{"v":2800,"d":"2,800.00"}}]
[null,"Vuokra",{"v":6000,"d":"6,000.00"},{"v":6000,"d":"6,000.00"},{"v":6000,"d":"6,000.00"},{"$f":"ExpenseTable[[#This Row],[TODELLINEN]]-ExpenseTable[[#This Row],[EHDOTETTU]]","v":{"v":0,"d":"0.00"}},{"$f":"ExpenseTable[[#This Row],[TODELLINEN]]-ExpenseTable[[#This Row],[EDELLINEN VUOSI]]","v":{"v":0,"d":"0.00"}}]
[null,"Kunnallispalvelut",{"v":1000,"d":"1,000.00"},{"v":1200,"d":"1,200.00"},{"v":1150,"d":"1,150.00"},{"$f":"ExpenseTable[[#This Row],[TODELLINEN]]-ExpenseTable[[#This Row],[EHDOTETTU]]","v":{"v":-50,"d":"(50.00)"}},{"$f":"ExpenseTable[[#This Row],[TODELLINEN]]-ExpenseTable[[#This Row],[EDELLINEN VUOSI]]","v":{"v":150,"d":"150.00"}}]
[null,"Matkat ja tapaamiset",{"v":2500,"d":"2,500.00"},{"v":2000,"d":"2,000.00"},{"v":2800,"d":"2,800.00"},{"$f":"ExpenseTable[[#This Row],[TODELLINEN]]-ExpenseTable[[#This Row],[EHDOTETTU]]","v":{"v":800,"d":"800.00"}},{"$f":"ExpenseTable[[#This Row],[TODELLINEN]]-ExpenseTable[[#This Row],[EDELLINEN VUOSI]]","v":{"v":300,"d":"300.00"}}]
[null,"Ammattitoimintaan liittyvät kulut",{"$nulls":3},{"$f":"ExpenseTable[[#This Row],[TODELLINEN]]-ExpenseTable[[#This Row],[EHDOTETTU]]","v":{"v":0,"d":"0.00"}},{"$f":"ExpenseTable[[#This Row],[TODELLINEN]]-ExpenseTable[[#This Row],[EDELLINEN VUOSI]]","v":{"v":0,"d":"0.00"}}]
[null,"Markkinointi/mainonta",{"$nulls":3},{"$f":"ExpenseTable[[#This Row],[TODELLINEN]]-ExpenseTable[[#This Row],[EHDOTETTU]]","v":{"v":0,"d":"0.00"}},{"$f":"ExpenseTable[[#This Row],[TODELLINEN]]-ExpenseTable[[#This Row],[EDELLINEN VUOSI]]","v":{"v":0,"d":"0.00"}}]
[null,"Vakuutus",{"$nulls":3},{"$f":"ExpenseTable[[#This Row],[TODELLINEN]]-ExpenseTable[[#This Row],[EHDOTETTU]]","v":{"v":0,"d":"0.00"}},{"$f":"ExpenseTable[[#This Row],[TODELLINEN]]-ExpenseTable[[#This Row],[EDELLINEN VUOSI]]","v":{"v":0,"d":"0.00"}}]
[null,"Puhelin",{"$nulls":3},{"$f":"ExpenseTable[[#This Row],[TODELLINEN]]-ExpenseTable[[#This Row],[EHDOTETTU]]","v":{"v":0,"d":"0.00"}},{"$f":"ExpenseTable[[#This Row],[TODELLINEN]]-ExpenseTable[[#This Row],[EDELLINEN VUOSI]]","v":{"v":0,"d":"0.00"}}]
[null,"Internet-maksut                  (sivusto, ryhmätyötila jne.)",{"$nulls":3},{"$f":"ExpenseTable[[#This Row],[TODELLINEN]]-ExpenseTable[[#This Row],[EHDOTETTU]]","v":{"v":0,"d":"0.00"}},{"$f":"ExpenseTable[[#This Row],[TODELLINEN]]-ExpenseTable[[#This Row],[EDELLINEN VUOSI]]","v":{"v":0,"d":"0.00"}}]
[null,"Laitteet",{"$nulls":3},{"$f":"ExpenseTable[[#This Row],[TODELLINEN]]-ExpenseTable[[#This Row],[EHDOTETTU]]","v":{"v":0,"d":"0.00"}},{"$f":"ExpenseTable[[#This Row],[TODELLINEN]]-ExpenseTable[[#This Row],[EDELLINEN VUOSI]]","v":{"v":0,"d":"0.00"}}]
[null,"Tarvikkeet",{"$nulls":3},{"$f":"ExpenseTable[[#This Row],[TODELLINEN]]-ExpenseTable[[#This Row],[EHDOTETTU]]","v":{"v":0,"d":"0.00"}},{"$f":"ExpenseTable[[#This Row],[TODELLINEN]]-ExpenseTable[[#This Row],[EDELLINEN VUOSI]]","v":{"v":0,"d":"0.00"}}]
[null,"Postikulut",{"$nulls":3},{"$f":"ExpenseTable[[#This Row],[TODELLINEN]]-ExpenseTable[[#This Row],[EHDOTETTU]]","v":{"v":0,"d":"0.00"}},{"$f":"ExpenseTable[[#This Row],[TODELLINEN]]-ExpenseTable[[#This Row],[EDELLINEN VUOSI]]","v":{"v":0,"d":"0.00"}}]
[null,"YHTEENSÄ",{"$f":"SUBTOTAL(109,ExpenseTable[EDELLINEN VUOSI])","v":{"v":29500,"d":"29,500.00 €"}},{"$f":"SUBTOTAL(109,ExpenseTable[EHDOTETTU])","v":{"v":46700,"d":"46,700.00 €"}},{"$f":"SUBTOTAL(109,ExpenseTable[TODELLINEN])","v":{"v":47750,"d":"47,750.00 €"}},{"$f":"SUBTOTAL(109,ExpenseTable[VARIANSSI])","v":{"v":1050,"d":"1,050.00 €"}},{"$f":"SUBTOTAL(109,ExpenseTable[''+/- EDELLINEN VUOSI])","v":{"v":18250,"d":"18,250.00 €"}}]